[Event "GCT 11th Sinquefield Cup 2024"]
[Site "Saint Louis"]
[Date "2024.08.27"]
[Round "8.3"]
[White "So, Wesley"]
[Black "Vachier-Lagrave, Maxime"]
[Result "1/2-1/2"]
[ECO "D06"]
[WhiteElo "2751"]
[BlackElo "2721"]
[Annotator "TA"]
[PlyCount "98"]
[EventDate "2024.08.09"]
[EventType "tourn"]
[EventCountry "USA"]
[SourceTitle "playchess.com"]
[Source "ChessBase"]
[SourceQuality "1"]
[TimeControl "7200+30"]

{[%evp 15,98,0,0,0,-12,-14,-10,-10,0,-14,-16,-10,4,11,8,8,7,10,9,12,12,14,8,0,33,34,53,54,39,48,39,39,50,55,51,20,31,24,32,18,29,23,38,26,51,18,10,0,0,0,0,0,0,0,39,39,35,35,38,15,15,15,31,11,11,8,31,31,31,31,31,0,0,0,0,0,8,8,8,0,0,0,8,0,0]} 1. Nf3 {[%emt 0:00:03]} d5 {[%emt 0:00:05]} 2. d4 {[%emt 0:00:07]} Nf6 {[%emt 0:00:04]} 3. c4 {[%emt 0:00:04]} c5 {[%emt 0:00:13]} 4. cxd5 {[%emt 0:00:48]} cxd4 {[%emt 0:00:07]} 5. Qxd4 {[%emt 0:00:07]} Qxd5 {[%emt 0:00:04]} 6. Nc3 {[%emt 0:00:06]} Qxd4 {[%emt 0:00:02]} 7. Nxd4 {[%emt 0:00:04]} a6 {[%emt 0:00:04]} 8. Bg5 {[%emt 0:01:22] D06: Queen's Gambit: Symmetrical and Baltic Defences.} e5 {[%emt 0:10:25]} 9. Bxf6 {[%emt 0:17:31]} gxf6 {[%emt 0:01:04]} 10. Nc2 {[%emt 0:02:43]} Be6 {[%emt 0:00:43]} 11. g3 {[%emt 0:00:06]} Nc6 {[%emt 0:01:07]} 12. Bg2 {[%emt 0:01:15]} O-O-O {[%emt 0:02:11]} 13. O-O {[%emt 0:03:32]} Nd4 {[%emt 0:06:30]} 14. Nxd4 {[%emt 0:08:28]} exd4 {[%emt 0:00:07]} 15. Ne4 {[%emt 0:01:46]} f5 $146 {[%emt 0:03:12]} ({Predecessor:} 15... Be7 16. Rac1+ Kb8 17. Nc5 Bc8 18. a3 h5 19. h4 Rhe8 20. Bf3 Bf8 21. Bxh5 Re5 22. Nxa6+ bxa6 23. Bxf7 Rxe2 24. b4 d3 25. Rcd1 Bh3 {0-1 Rees,I (2289)-Musovic,A (2255) Titled Tuesday intern op 15th Aug Late blitz 2023 (8)}) 16. Ng5 {[%emt 0:08:46]} Bg7 {[%emt 0:07:22]} 17. Rfd1 {[%emt 0:01:09]} Kb8 {[%emt 0:00:47]} 18. Nxe6 {[%emt 0:00:35]} fxe6 {[%emt 0:00:07]} 19. Rd3 {[%emt 0:00:21]} Rd7 {[%emt 0:09:07]} 20. e4 {[%emt 0:02:45]} Rc8 {[%emt 0:01:34]} 21. exf5 {[%emt 0:02:36]} exf5 {[%emt 0:00:05]} 22. Rad1 {[%emt 0:02:10]} Rc2 {[%emt 0:00:51]} 23. R1d2 {[%emt 0:00:44]} Rxd2 {[%emt 0:05:45]} 24. Rxd2 {[%emt 0:00:03]} d3 {[%emt 0:00:09]} 25. Bf1 {[%emt 0:00:52]} (25. Bh3 $5 Rd5 26. Bg2 $18) 25... Bxb2 $1 {[%emt 0:07:13]} 26. Rxd3 {[%emt 0:07:36]} (26. Rxb2 d2 27. Be2 d1=R+ 28. Bxd1 Rxd1+ 29. Kg2 Rd5 $11) 26... Kc7 {[%emt 0:00:08]} 27. Rf3 {[%emt 0:02:01]} b5 {[%emt 0:02:15]} 28. Rxf5 {[%emt 0:04:36]} Rd2 {[%emt 0:00:15]} 29. Rf7+ {[%emt 0:00:16]} Kd6 {[%emt 0:01:53]} 30. Rf3 {[%emt 0:04:12]} Kc5 {[%emt 0:04:39]} 31. Bh3 {[%emt 0:31:09]} Bd4 {[%emt 0:03:37]} 32. Be6 {[%emt 0:00:07]} a5 {[%emt 0:00:16]} 33. Rf5+ {[%emt 0:04:47]} Kd6 {[%emt 0:02:49]} 34. Bg8 {[%emt 0:00:22]} a4 {[%emt 0:01:42]} (34... Kc6 $5) 35. Rxb5 {[%emt 0:02:19]} Bxf2+ {[%emt 0:00:35]} 36. Kh1 {[%emt 0:00:14]} Bc5 {[%emt 0:00:23]} 37. h4 {[%emt 0:03:33]} h5 {[%emt 0:01:50]} 38. Ra5 {[%emt 0:02:36]} a3 {[%emt 0:01:04]} 39. Bb3 {[%emt 0:02:28]} Rb2 {[%emt 0:03:27]} 40. Ra6+ {[%emt 0:00:49]} Kd7 {[%emt 0:01:32]} 41. Rf6 {[%emt 0:03:19]} Bd6 {[%emt 0:00:24]} 42. Rf3 {[%emt 0:00:07]} Ke7 {[%emt 0:00:10]} 43. Rf7+ {[%emt 0:00:22]} Kd8 {[%emt 0:00:32]} 44. Rg7 {[%emt 0:00:22]} Be5 {[%emt 0:00:54]} 45. Rg8+ {[%emt 0:00:42]} Kd7 {[%emt 0:01:01]} 46. Bc4 {[%emt 0:01:09]} Rc2 {[%emt 0:03:05]} 47. Bb3 {[%emt 0:00:31]} Rb2 {[%emt 0:00:11]} 48. Bc4 {[%emt 0:00:02]} Rc2 {[%emt 0:00:05]} 49. Bb3 {[%emt 0:00:03]} Rb2 {[%emt 0:00:15]} 1/2-1/2

[Event "GCT 11th Sinquefield Cup 2024"]
[Site "Saint Louis"]
[Date "2024.08.27"]
[Round "8.4"]
[White "Giri, Anish"]
[Black "Gukesh D"]
[Result "1/2-1/2"]
[ECO "C77"]
[WhiteElo "2746"]
[BlackElo "2766"]
[Annotator "TA"]
[PlyCount "46"]
[EventDate "2024.08.09"]
[EventType "tourn"]
[EventCountry "USA"]
[SourceTitle "playchess.com"]
[Source "ChessBase"]
[SourceQuality "1"]
[TimeControl "7200+30"]

{[%evp 16,46,9,0,13,14,21,11,20,24,23,0,0,0,0,0,0,0,20,0,13,0,0,0,0,0,0,0,0,0,0,0,0]} 1. e4 {[%emt 0:00:02]} e5 {[%emt 0:00:06]} 2. Nf3 {[%emt 0:00:04]} Nc6 {[%emt 0:00:05]} 3. Bb5 {[%emt 0:00:04]} a6 {[%emt 0:02:00]} 4. Ba4 {[%emt 0:00:21]} Nf6 {[%emt 0:00:08]} 5. O-O {[%emt 0:00:14]} Be7 {[%emt 0:00:06]} 6. d3 {[%emt 0:00:09]} b5 {[%emt 0:01:00]} 7. Bb3 {[%emt 0:00:15]} O-O {[%emt 0:00:14]} 8. Nc3 {[%emt 0:00:48]} d6 {[%emt 0:01:47]} 9. a3 {[%emt 0:00:12]} h6 {[%emt 0:01:04]} 10. h3 {[%emt 0:00:44]} Rb8 {[%emt 0:00:07]} 11. Be3 {[%emt 0:01:15]} Re8 {[%emt 0:00:08]} 12. Nd5 {[%emt 0:00:59]} Bf8 {[%emt 0:08:13]} 13. c4 {[%emt 0:00:26]} Bd7 {[%emt 0:03:13] The position is equal.} 14. Qd2 {[%emt 0:00:20] Dodges Na5} bxc4 {[%emt 0:08:38]} 15. Bxc4 {[%emt 0:00:18]} Nxd5 {[%emt 0:00:16]} 16. Bxd5 {[%emt 0:00:05]} Ne7 {[%emt 0:03:33]} (16... Qf6 $5) 17. Bc4 {[%emt 0:01:36][%cal Bd5c4,Bc4a6,Ba6b7][%mdl 32]} c6 {[%emt 0:00:07]} 18. Bxa6 {[%emt 0:06:58]} d5 {[%emt 0:07:14]} 19. Nxe5 {[%emt 0:09:35]} Ra8 $1 {[%emt 0:00:10]} 20. Bb7 {[%emt 0:00:04]} Rb8 {[%emt 0:00:04]} 21. Ba6 {[%emt 0:00:05] Hoping for Rfc1.} Ra8 $1 {[%emt 0:00:06]} 22. Bb7 {[%emt 0:00:03]} Rb8 {[%emt 0:00:04]} 23. Ba6 {[%emt 0:00:03] Threatens to win with Rac1.} Ra8 $1 {[%emt 0:00:11] An uneventful encounter.   Weighted Error Value: White=0.03 (flawless) /Black=0.03 (flawless) .  OK:         	White=9     	Black=8      Strong:       	---       	Black=3} 1/2-1/2

[Event "GCT 11th Sinquefield Cup 2024"]
[Site "Saint Louis"]
[Date "2024.08.27"]
[Round "8.5"]
[White "Nepomniachtchi, Ian"]
[Black "Firouzja, Alireza"]
[Result "1/2-1/2"]
[ECO "C47"]
[WhiteElo "2767"]
[BlackElo "2751"]
[Annotator "TA"]
[PlyCount "159"]
[EventDate "2024.08.09"]
[EventType "tourn"]
[EventCountry "USA"]
[SourceTitle "playchess.com"]
[Source "ChessBase"]
[SourceQuality "1"]
[TimeControl "7200+30"]

{[%evp 14,159,2,-4,0,0,18,12,8,14,0,13,10,16,22,1,14,14,12,12,9,5,8,9,8,8,9,9,8,4,10,11,61,68,76,79,83,72,88,81,83,82,69,47,53,41,37,23,23,0,0,0,0,2,63,63,63,63,92,85,86,80,114,129,90,51,58,0,0,0,0,0,0,0,0,0,0,0,0,0,0,0,66,0,0,0,0,0,0,0,0,0,0,0,0,0,0,0,0,0,0,0,0,0,0,0,0,0,0,0,0,0,0,0,0,0,0,0,0,0,0,0,0,0,0,0,0,0,0,0,0,0,0,0,0,0,0,0,0,0,0,0,0,0,0,0,0,0]} 1. e4 {[%emt 0:00:02]} e5 {[%emt 0:00:05]} 2. Nf3 {[%emt 0:00:04]} Nc6 {[%emt 0:00:04]} 3. Nc3 {[%emt 0:00:04]} Nf6 {[%emt 0:00:10]} 4. d4 {[%emt 0:00:03]} exd4 {[%emt 0:00:07]} 5. Nxd4 {[%emt 0:00:04]} Bb4 {[%emt 0:00:06]} 6. Nxc6 {[%emt 0:00:03]} bxc6 {[%emt 0:00:07]} 7. Bd3 {[%emt 0:00:05]} d5 {[%emt 0:00:52]} 8. exd5 {[%emt 0:00:05]} O-O {[%emt 0:00:08]} 9. O-O {[%emt 0:00:04]} Bg4 {[%emt 0:01:29]} 10. Ne2 {[%emt 0:00:18]} cxd5 {[%emt 0:01:34]} 11. h3 {[%emt 0:00:06]} Bh5 {[%emt 0:00:28]} 12. c4 {[%emt 0:00:04]} dxc4 {[%emt 0:04:04]} 13. Bxc4 {[%emt 0:00:24]} Bd6 {[%emt 0:00:03]} 14. Be3 {[%emt 0:00:17]} Re8 {[%emt 0:00:08]} 15. Re1 {[%emt 0:00:11]} Rxe3 {[%emt 0:08:02]} 16. fxe3 {[%emt 0:00:22]} Qe7 {[%emt 0:00:44]} 17. Qd4 {[%emt 0:02:57]} Rd8 {[%emt 0:18:33]} 18. Nf4 {[%emt 0:00:23]} Bc5 $132 {[%emt 0:03:56][%mdl 2048] Black puts up resistance} 19. Qc3 {[%emt 0:00:22]} Bb4 {[%emt 0:00:43] [#]} 20. Qc2 {[%emt 0:05:18]} Bxe1 {[%emt 0:02:35]} 21. Rxe1 {[%emt 0:00:26]} Qe5 {[%emt 0:16:52]} 22. Qb3 {[%emt 0:13:13]} Bg6 {[%emt 0:12:01]} (22... h6 $11) 23. Nxg6 $14 {[%emt 0:13:30]} hxg6 {[%emt 0:00:24]} 24. Bxf7+ {[%emt 0:00:14]} Kh7 {[%emt 0:01:38]} 25. Qc3 $1 {[%emt 0:10:25]} Qg3 {[%emt 0:25:27] ...Ne4 would now be deadly.} 26. Rf1 {[%emt 0:04:04]} Nd5 {[%emt 0:05:20]} 27. Bxd5 {[%emt 0:12:57]} Rxd5 $16 {[%emt 0:00:14][%mdl 4096] Endgame. KQR-KQR} 28. Kh1 {[%emt 0:01:05]} c5 {[%emt 0:01:45]} 29. b3 {[%emt 0:03:27]} Qd6 {[%emt 0:08:36]} 30. e4 {[%emt 0:11:19]} Rd2 {[%emt 0:00:17]} 31. a4 {[%emt 0:09:41]} Rd3 {[%emt 0:00:52]} 32. Qc4 {[%emt 0:02:45][%cal Oe4e5] Black should prevent e5!} Re3 {[%emt 0:00:16]} 33. Qd5 {[%emt 0:14:57]} Qxd5 {[%emt 0:09:33]} (33... Qg3 $11) 34. exd5 $14 {[%emt 0:00:22]} Rxb3 $11 {[%emt 0:00:05] KR-KR} 35. Rc1 {[%emt 0:00:10]} Ra3 {[%emt 0:00:56] [#]} 36. Rd1 $1 {[%emt 0:01:51]} (36. Rxc5 Rxa4 37. Kg1 Rf4 $14) 36... Re3 {[%emt 0:01:24]} 37. Kg1 {[%emt 0:00:45]} c4 {[%emt 0:00:26] [#]} 38. Kf2 $1 {[%emt 0:00:23]} Re8 {[%emt 0:00:22]} 39. Kf3 {[%emt 0:01:07] And now Kf4 would win.} c3 {[%emt 0:01:03]} 40. d6 {[%emt 0:03:20]} (40. a5 $1 $14) 40... Rd8 {[%emt 0:01:22]} 41. Ke4 {[%emt 0:00:10]} c2 {[%emt 0:00:04]} 42. Rc1 {[%emt 0:00:02]} Rxd6 {[%emt 0:00:04]} 43. Rxc2 {[%emt 0:00:02]} Kh6 {[%emt 0:01:52]} 44. Rc5 {[%emt 0:01:59]} Rd2 {[%emt 0:00:16]} 45. Kf3 {[%emt 0:00:41]} Rd3+ {[%emt 0:00:06]} 46. Ke2 {[%emt 0:00:38]} Rg3 {[%emt 0:02:52]} 47. Kf2 {[%emt 0:00:41]} Rb3 {[%emt 0:03:23]} ({Black should try} 47... Rg5 $11 48. Rb5 a6) 48. Ra5 {[%emt 0:00:21]} ({Better is} 48. Rc7 $1 $14) 48... Rb7 {[%emt 0:00:36] The position is equal.} 49. h4 {[%emt 0:01:10]} Rb2+ {[%emt 0:00:38]} 50. Kg3 {[%emt 0:00:07]} Rb3+ {[%emt 0:00:05]} 51. Kg4 {[%emt 0:00:26]} Rb4+ {[%emt 0:00:04]} 52. Kh3 {[%emt 0:00:03]} Rb3+ {[%emt 0:00:04]} 53. g3 {[%emt 0:00:05]} Rb7 {[%emt 0:00:03]} 54. Ra6 {[%emt 0:01:19]} Rc7 {[%emt 0:00:15]} 55. Ra5 {[%emt 0:01:48]} Rb7 {[%emt 0:00:07]} 56. Ra6 {[%emt 0:01:41]} Rc7 {[%emt 0:01:02]} 57. a5 {[%emt 0:00:39]} Rb7 {[%emt 0:00:19][%cal Bc7b7,Bb7b5,Bb5a5,Ba5a4][%mdl 32]} 58. Rc6 {[%emt 0:00:19]} Rb5 {[%emt 0:01:08]} 59. a6 {[%emt 0:01:06] Strongly threatening Rc7.} Ra5 {[%emt 0:00:13]} 60. Kg4 {[%emt 0:01:16]} Ra4+ {[%emt 0:00:29]} 61. Kh3 {[%emt 0:00:52]} Ra3 {[%emt 0:00:46]} 62. Re6 {[%emt 0:00:04]} Kh5 {[%emt 0:01:26]} 63. Re5+ {[%emt 0:01:03]} Kh6 {[%emt 0:00:06]} 64. Re6 {[%emt 0:00:03]} Kh5 {[%emt 0:00:04]} 65. Re8 {[%emt 0:01:14][%cal Re8h8]} g5 $1 {[%emt 0:00:06]} 66. Rh8+ {[%emt 0:00:32]} Kg6 {[%emt 0:00:03]} 67. h5+ {[%emt 0:00:02][%cal Bh4h5,Bh5h6][%mdl 32]} Kf7 {[%emt 0:02:17]} 68. Kg4 {[%emt 0:00:04]} Rxa6 {[%emt 0:00:09]} 69. Kxg5 {[%emt 0:00:05]} Ra5+ {[%emt 0:00:15]} 70. Kh4 {[%emt 0:00:10]} g6 {[%emt 0:01:31] ( -> ...Rxh5+)} 71. h6 {[%emt 0:01:06] Threatens to win with g4.} Rh5+ {[%emt 0:00:05]} 72. Kg4 {[%emt 0:00:01]} Kf6 {[%emt 0:00:43]} 73. Rf8+ {[%emt 0:00:29]} Ke7 {[%emt 0:00:23]} 74. Ra8 {[%emt 0:00:11] Intending h7 and mate.} Kf6 {[%emt 0:00:15]} 75. Rxa7 {[%emt 0:00:49]} Rxh6 {[%emt 0:00:05]} 76. Ra6+ {[%emt 0:00:03]} Kg7 {[%emt 0:00:06]} 77. Ra7+ {[%emt 0:00:03]} Kf6 {[%emt 0:00:04]} 78. Ra6+ {[%emt 0:00:04]} Kg7 {[%emt 0:00:03]} 79. Ra7+ {[%emt 0:00:03]} Kf6 {[%emt 0:00:04]} 80. Ra6+ {[%emt 0:00:03] Weighted Error Value: White=0.05 (flawless) /Black=0.07 (flawless) .  Mistake:       	White=2     	Black=3      Inaccurate:     	White=1     	Black=2      OK:         	White=15    	Black=45     Best:        	White=7     	Black=8      Strong:       	White=3     	Black=1} 1/2-1/2

[Event "GCT 11th Sinquefield Cup 2024"]
[Site "Saint Louis"]
[Date "2024.08.28"]
[Round "9.1"]
[White "Gukesh D"]
[Black "So, Wesley"]
[Result "1/2-1/2"]
[ECO "E21"]
[WhiteElo "2766"]
[BlackElo "2751"]
[Annotator "TA"]
[PlyCount "69"]
[EventDate "2024.08.09"]
[EventType "tourn"]
[EventCountry "USA"]
[SourceTitle "playchess.com"]
[Source "ChessBase"]
[SourceQuality "1"]
[TimeControl "7200+30"]

{[%evp 9,69,12,12,0,13,0,7,8,32,39,56,44,41,34,39,36,49,54,49,50,47,52,47,48,50,54,47,53,58,52,52,50,48,64,63,64,64,62,58,58,59,13,13,3,0,0,0,0,0,0,0,0,0,0,0,0,0,0,0,0,0,0]} 1. d4 {[%emt 0:00:04]} Nf6 {[%emt 0:00:09]} 2. c4 {[%emt 0:00:07]} e6 {[%emt 0:00:03]} 3. Nc3 {[%emt 0:00:07]} Bb4 {[%emt 0:00:05]} 4. Nf3 {[%emt 0:00:06]} c5 {[%emt 0:00:20]} 5. dxc5 {[%emt 0:04:53]} Na6 {[%emt 0:03:38][%cal Bb8a6,Ba6c5,Bc5e4][%mdl 32]} 6. Bd2 {[%emt 0:00:08][%cal Bc1d2,Bd2c3,Bc3b4,Bb4a3][%mdl 32]} Nxc5 {[%emt 0:03:11]} 7. e3 {[%emt 0:00:06]} Bxc3 {[%emt 0:09:52]} 8. Bxc3 {[%emt 0:00:09]} Nce4 {[%emt 0:00:04]} 9. Bb4 {[%emt 0:09:55]} d6 {[%emt 0:12:15]} 10. Be2 {[%emt 0:02:12]} Qb6 {[%emt 0:02:33]} 11. Ba3 {[%emt 0:06:45]} O-O {[%emt 0:13:41]} 12. O-O {[%emt 0:00:45]} e5 {[%emt 0:00:10]} 13. Nd2 {[%emt 0:10:35]} Rd8 {[%emt 0:15:44]} 14. Nxe4 {[%emt 0:07:19]} Nxe4 {[%emt 0:00:04]} 15. Qc2 {[%emt 0:00:05]} Bf5 {[%emt 0:06:08][%cal Oe4g3]} 16. Bd3 {[%emt 0:42:33]} d5 {[%emt 0:00:49]} 17. Rad1 {[%emt 0:09:16]} Rac8 {[%emt 0:05:45]} 18. Qb1 $1 {[%emt 0:03:18]} Bg4 {[%emt 0:12:33][%cal Bf5g4,Bg4d1,Bd1e2,Be2c4,Bc4d5][%mdl 32]} 19. cxd5 {[%emt 0:00:17]} Bxd1 {[%emt 0:00:26]} 20. Bxe4 {[%emt 0:00:05]} Be2 {[%emt 0:06:36]} 21. Re1 {[%emt 0:00:14]} Bc4 {[%emt 0:00:08]} 22. Bxh7+ {[%emt 0:00:51] This pair of bishops is nice.} Kh8 {[%emt 0:01:01][%cal Og7g6] [#] aiming for ...g6!} 23. Bf5 {[%emt 0:01:58]} (23. d6 {looks sharper.} Qa5 24. Bf5 Bxa2 25. Qd1) 23... Bxd5 $1 {[%emt 0:00:27]} 24. Bxc8 {[%emt 0:02:08]} Rxc8 {[%emt 0:00:01]} 25. Rd1 {[%emt 0:00:44]} (25. h3 $14) 25... Qc6 $11 {[%emt 0:04:23] The position is equal.} 26. f3 {[%emt 0:12:24] Inhibits Be4.} (26. Qf5 {feels hotter.} Qc2 27. Qxc2 Rxc2 28. h4) 26... Qb6 {[%emt 0:10:07]} 27. Re1 {[%emt 0:02:22]} (27. Rxd5 $2 {perishes.} Qxe3+ 28. Kf1 Rc1+ $19) 27... Bxa2 {[%emt 0:04:47]} 28. Qxa2 {[%emt 0:01:38]} Rc1 $1 {[%emt 0:00:04]} 29. Rxc1 {[%emt 0:04:50]} Qxe3+ {[%emt 0:00:26]} 30. Kf1 {[%emt 0:00:03]} Qd3+ {[%emt 0:00:20]} 31. Ke1 {[%emt 0:00:05]} Qe3+ {[%emt 0:00:03]} 32. Kd1 {[%emt 0:00:04] [#] Threatening mate with Rc8+.} Qd3+ {[%emt 0:00:03]} 33. Ke1 {[%emt 0:00:03] White wants to mate with Rc8+.} Qe3+ {[%emt 0:00:02]} 34. Kd1 {[%emt 0:00:05] Rc8+ is the strong threat.} Qd3+ {[%emt 0:00:03]} 35. Ke1 {[%emt 0:00:05] Weighted Error Value: White=0.03 (flawless) /Black=0.03 (flawless) .  Mistake:       	White=1     	---        OK:         	White=13    	Black=11     Best:        	White=3     	Black=7      Strong:       	White=1     	Black=2} 1/2-1/2

[Event "GCT 11th Sinquefield Cup 2024"]
[Site "Saint Louis"]
[Date "2024.08.28"]
[Round "9.2"]
[White "Abdusattorov, Nodirbek"]
[Black "Nepomniachtchi, Ian"]
[Result "1-0"]
[ECO "D95"]
[WhiteElo "2762"]
[BlackElo "2767"]
[Annotator "TA"]
[PlyCount "53"]
[EventDate "2024.08.09"]
[EventType "tourn"]
[EventCountry "USA"]
[SourceTitle "playchess.com"]
[Source "ChessBase"]
[SourceQuality "1"]
[TimeControl "7200+30"]

{[%evp 13,53,-6,23,6,24,12,11,16,15,16,11,10,45,52,42,33,42,15,14,6,29,33,40,40,35,0,0,0,39,0,8,0,89,73,145,137,137,133,254,263,493,487]} 1. d4 {[%emt 0:00:09]} Nf6 {[%emt 0:00:06]} 2. Nf3 {[%emt 0:00:15]} g6 {[%emt 0:00:07]} 3. c4 {[%emt 0:02:50]} Bg7 {[%emt 0:00:49]} 4. Nc3 {[%emt 0:01:02]} d5 {[%emt 0:00:07]} 5. e3 {[%emt 0:00:19]} O-O {[%emt 0:00:10]} 6. Bd2 {[%emt 0:00:06]} c6 {[%emt 0:05:30]} 7. Qb3 {[%emt 0:06:43]} Qb6 {[%emt 0:11:31]} 8. Qa3 {[%emt 0:10:51]} Bf5 {[%emt 0:06:47]} 9. Rc1 {[%emt 0:03:54]} Nbd7 {[%emt 0:04:41]} 10. cxd5 {[%emt 0:06:12] The position is equal.} cxd5 {[%emt 0:01:52]} 11. Be2 {[%emt 0:00:07][%cal Oe1g1]} Rfc8 {[%emt 0:01:17]} 12. O-O {[%emt 0:00:08][%cal Oh2h3]} Bf8 {[%emt 0:01:13]} 13. Na4 {[%emt 0:09:08]} Qd8 {[%emt 0:00:44]} 14. Qb3 {[%emt 0:00:17]} Rcb8 {[%emt 0:06:07]} 15. Nc3 {[%emt 0:06:36]} e6 {[%emt 0:01:54][%cal Ob7b5]} 16. h3 {[%emt 0:00:13]} Ne4 {[%emt 0:03:13]} 17. g4 {[%emt 0:16:29]} Nxc3 $1 {[%emt 0:00:28]} 18. Bxc3 {[%emt 0:01:53][%cal Bd2c3,Bc3e1,Be1g3][%mdl 32]} Be4 {[%emt 0:00:04]} 19. Ne5 {[%emt 0:00:05]} Nxe5 {[%emt 0:07:05]} 20. dxe5 {[%emt 0:00:04]} Qh4 {[%emt 0:00:30]} 21. Be1 {[%emt 0:08:45] aiming for Kh2.} Qxh3 {[%emt 0:00:39][%csl Ge4][%cal Rh3h1]} 22. f3 {[%emt 0:00:01]} Bh6 {[%emt 0:01:22] [#]} 23. Rf2 $1 $36 {[%emt 0:03:55][%cal Of2h2,Bf1f2,Bf2g2,Bg2f2][%mdl 2080] Black must now prevent Rh2! White is really pushing.} Qg3+ {[%emt 0:07:38]} (23... d4 $142 24. Rh2 (24. fxe4 Bxe3 25. Rc7 Rf8 $19) 24... Bxe3+ 25. Qxe3 Qxh2+ 26. Kxh2 dxe3) 24. Rg2 {[%emt 0:00:51]} Qxe5 {[%emt 0:02:50][%cal Oe4f3] [#] And now ...Bxf3! would win.} (24... Qh3 $2 25. Rh2 $18 (25. fxe4 $2 Qxe3+ 26. Qxe3 Bxe3+ 27. Kf1 Bxc1 $19) (25. fxe4 $2 Qxe3+ 26. Kf1 Qxc1 $19)) 25. Bg3 $1 {[%emt 0:00:07]} (25. fxe4 Rc8 26. Rd1 Qxe4 $14) 25... Qf6 {[%emt 0:00:46]} ({Wrong is} 25... Qg5 $2 26. Bf4 $18 (26. fxe4 $2 Qxe3+ 27. Qxe3 Bxe3+ 28. Kf1 Bxc1 $19)) (25... Bc2 $16 26. Bxe5 (26. Qxc2 $2 Qxe3+ 27. Kf1 Qxc1+ $19) (26. Rxc2 Bxe3+ 27. Kf1 Bf4 $14) 26... Bxb3) 26. fxe4 $18 {[%emt 0:04:04] Rf2 would now be deadly.} ({But not} 26. Bxb8 Rxb8 27. fxe4 d4 $18) 26... dxe4 $2 {[%emt 0:01:18]} (26... Rc8 {was necessary.} 27. Rf1 Qe7 28. exd5 exd5) 27. Rf2 {[%emt 0:02:18] Weighted Error Value: White=0.08 (flawless) /Black=0.43.  Mistake:       	---       	Black=4      Inaccurate:     	White=3     	Black=2      OK:         	White=7     	Black=8      Best:        	White=3     	---        Strong:       	White=2     	Black=1} 1-0